bitfinex/quotes_BTCUSD_20240627
["timestamp","ask_amount","ask_price","bid_price","bid_amount"]
[1719501918509,0.1,61854.0,61853.0,0.05145138]
[1719501918694,0.1,61854.0,61851.0,0.21626319]
[1719501919005,0.1,61854.0,61853.0,0.21566319]
[1719501919643,0.06482,61855.0,61853.0,0.21566319]
[1719501919845,0.06682,61855.0,61854.0,0.21566319]
[1719501920051,0.002,61855.0,61854.0,1.22025482]
[1719501920177,0.02537088,61857.0,61856.0,0.21566319]
[1719501920383,0.02537088,61857.0,61856.0,0.41566319]
[1719501920581,0.02537088,61857.0,61856.0,0.52201659]
[1719501920772,0.02537088,61857.0,61856.0,0.63293334]
[1719501921416,0.02537088,61857.0,61856.0,0.79527232]
[1719501921747,0.02537088,61857.0,61856.0,1.38157232]
[1719501922696,0.02537088,61857.0,61856.0,1.39157232]
[1719501922910,0.033771,61864.0,61861.0,0.21566319]
[1719501923282,0.033771,61864.0,61861.0,0.32201659]
[1719501923999,0.033771,61864.0,61861.0,0.45552171]
[1719501925410,0.033771,61864.0,61861.0,0.81786069]
[1719501925612,0.0084,61864.0,61861.0,1.40696069]
[1719501926464,0.0084,61864.0,61861.0,1.71220164]
[1719501926616,0.0094,61862.0,61861.0,1.71820164]
[1719501926827,0.0094,61862.0,61861.0,1.72020164]
[1719501927024,0.0094,61862.0,61861.0,2.14120164]
[1719501927226,0.0084,61864.0,61863.0,1.10281659]
[1719501927425,0.0084,61864.0,61863.0,2.09411327]
[1719501928232,0.0084,61864.0,61863.0,2.31518174]
[1719501928674,0.0084,61864.0,61863.0,1.95967232]
[1719501928879,0.0084,61864.0,61863.0,2.31514516]
[1719501929102,0.0084,61864.0,61863.0,2.29569917]
[1719501929311,0.00084,61865.0,61864.0,1.66331659]
[1719501929519,0.00084,61865.0,61864.0,1.83526797]
[1719501930376,0.00084,61865.0,61864.0,2.03526797]
[1719501930606,0.00084,61865.0,61864.0,2.04926797]
[1719501931358,0.00184,61865.0,61864.0,2.2823413]
[1719501931900,0.00184,61865.0,61864.0,1.92685723]
[1719501932187,0.00184,61865.0,61864.0,2.26290035]
[1719501932993,0.02719496,61865.0,61864.0,2.08234761]
[1719501933393,0.02719496,61865.0,61864.0,2.06290035]
[1719501934178,0.02719496,61865.0,61864.0,2.03990035]
[1719501934385,0.02719496,61865.0,61864.0,2.05934779]
[1719501934757,0.02719496,61865.0,61864.0,1.83827448]
[1719501935210,0.02619496,61865.0,61864.0,1.82627448]
[1719501935381,0.02619496,61865.0,61864.0,1.82628556]
[1719501935584,0.02719496,61865.0,61864.0,1.83828556]
[1719501935905,0.02719496,61865.0,61864.0,1.63828556]
[1719501936154,0.02719496,61865.0,61864.0,1.62428556]
[1719501936347,0.02688166,61865.0,61864.0,1.63828556]
[1719501936505,0.02656819,61865.0,61864.0,1.63828556]
[1719501936711,0.02656819,61865.0,61864.0,1.62428556]
[1719501936912,0.02656819,61865.0,61864.0,1.63828556]
[1719501937106,0.02656819,61865.0,61864.0,1.83828556]
[1719501937310,0.02656819,61865.0,61864.0,1.82428556]
[1719501937723,0.02625589,61865.0,61864.0,1.83828556]
[1719501938420,0.02525589,61865.0,61864.0,1.69185723]
[1719501938620,0.02525589,61865.0,61864.0,1.62627979]
[1719501939068,0.02625589,61865.0,61864.0,1.63627979]
[1719501939609,0.02525589,61865.0,61864.0,1.62627979]
[1719501940024,0.02625589,61865.0,61864.0,1.63627979]
[1719501940222,0.02625589,61865.0,61864.0,1.83627979]
[1719501940697,0.02625589,61865.0,61864.0,1.85927979]
[1719501941047,0.0084,61866.0,61865.0,0.90281659]
[1719501941252,0.0084,61866.0,61865.0,1.88619488]
[1719501941450,0.03375509,61866.0,61865.0,2.08619488]
[1719501941827,0.03375509,61866.0,61865.0,1.95177232]
[1719501941953,0.03375509,61866.0,61865.0,2.08619119]
[1719501942157,0.03375509,61866.0,61865.0,1.88619119]
[1719501942383,1e-08,61870.0,61869.0,0.70281659]
[1719501942597,1e-08,61870.0,61869.0,1.0517761]
[1719501943004,0.02535563,61870.0,61869.0,1.0517761]
[1719501943626,0.02635563,61870.0,61869.0,1.0627761]
[1719501944023,0.02576397,61870.0,61869.0,1.0627761]
[1719501944637,0.02576397,61870.0,61869.0,1.0767761]
[1719501945093,0.02576397,61870.0,61869.0,1.0767829]
[1719501945516,0.02576397,61870.0,61869.0,0.94235723]
[1719501948764,0.02576397,61870.0,61869.0,0.89015557]
[1719501948958,0.02576397,61870.0,61869.0,0.71935557]
[1719501948959,0.27916397,61870.0,61869.0,0.71935557]
[1719501949363,0.27916397,61870.0,61869.0,0.70935557]
[1719501949664,0.27916397,61870.0,61869.0,0.71935557]
[1719501950563,0.27916397,61870.0,61869.0,0.70935557]
[1719501951350,0.27916397,61870.0,61869.0,0.54701659]
[1719501951548,0.37916397,61870.0,61869.0,0.225]
[1719501952015,0.69816397,61870.0,61869.0,0.44066319]
[1719501952588,0.69816397,61870.0,61869.0,0.42966319]
[1719501952787,0.69716397,61870.0,61869.0,0.42966319]
[1719501953189,0.69816397,61870.0,61869.0,0.43566319]
[1719501953622,0.69716397,61870.0,61869.0,0.42966319]
[1719501953840,0.69716397,61870.0,61869.0,0.414]
[1719501954010,0.69716397,61870.0,61869.0,0.48526485]
[1719501954214,0.69654045,61870.0,61869.0,0.48526485]
[1719501954553,0.69654045,61870.0,61869.0,0.47126485]
[1719501954762,0.69654045,61870.0,61869.0,0.57761825]
[1719501954961,0.69654045,61870.0,61869.0,0.73995723]
[1719501954962,0.12414045,61870.0,61869.0,0.73995723]
[1719501955209,0.02414045,61870.0,61869.0,0.73995723]
[1719501955976,0.02614045,61870.0,61869.0,0.73995723]
[1719501956580,0.02614045,61870.0,61869.0,0.74995723]
[1719501957001,0.02614045,61870.0,61869.0,1.31105723]
[1719501958026,0.02614045,61870.0,61869.0,1.30905723]
[1719501958469,0.20474236,61878.0,61877.0,0.41566319]
[1719501958667,0.2574,61879.0,61878.0,0.32201659]
[1719501960009,0.2604,61879.0,61878.0,0.32201659]
[1719501960179,0.2604,61879.0,61878.0,0.32301659]
[1719501960385,0.2604,61879.0,61878.0,0.37631825]
[1719501960605,0.3604,61879.0,61878.0,0.37631825]
[1719501961200,0.103,61879.0,61878.0,0.74865723]
[1719501961405,0.103,61879.0,61878.0,0.73865723]
[1719501961643,0.00384,61879.0,61878.0,0.74865723]
[1719501961775,0.00384,61879.0,61878.0,0.73865723]
[1719501961976,0.02919545,61879.0,61878.0,0.73865723]
[1719501962176,0.02619545,61879.0,61878.0,0.73865723]
[1719501962603,0.02619545,61879.0,61878.0,0.74365723]
[1719501962972,0.02619545,61879.0,61878.0,0.74265723]
[1719501963225,0.58269545,61879.0,61878.0,0.52701659]
[1719501963438,0.58369545,61879.0,61878.0,0.53701659]
[1719501963641,0.68369545,61879.0,61878.0,0.53701659]
[1719501964098,0.68338371,61879.0,61878.0,0.53701659]
[1719501964228,0.68238371,61879.0,61878.0,0.52701659]
[1719501964618,0.68238371,61879.0,61878.0,0.205]
[1719501964992,0.68238371,61879.0,61878.0,0.201]
[1719501965292,0.68238371,61879.0,61873.0,0.3063534]
[1719501965293,0.5565,61877.0,61873.0,0.3063534]
[1719501965595,0.14252266,61879.0,61872.0,0.2]
[1719501965596,0.5565,61875.0,61872.0,0.2]
[1719501965948,0.1,61874.0,61872.0,0.2]
[1719501966339,0.2569,61872.0,61869.0,0.200924]
[1719501966549,0.1,61871.0,61869.0,0.200924]
[1719501966861,0.26185263,61871.0,61869.0,0.200924]
[1719501967065,0.26185263,61871.0,61870.0,0.2]
[1719501967287,0.1,61871.0,61869.0,0.200924]
[1719501967483,0.16196714,61870.0,61869.0,0.200924]
[1719501967696,0.26196714,61870.0,61869.0,0.200924]
[1719501967903,0.1,61870.0,61869.0,0.192824]
[1719501968093,0.26196099,61870.0,61869.0,0.192824]
[1719501968479,0.4135,61870.0,61869.0,0.192824]
[1719501969101,0.6492,61870.0,61869.0,0.192824]
[1719501969515,0.6492,61870.0,61869.0,0.18477566]
[1719501969716,0.6492,61870.0,61869.0,0.18197296]
[1719501970166,0.6502,61870.0,61869.0,0.20497296]
[1719501970571,0.6492,61870.0,61869.0,0.19197296]
[1719501971198,0.6492,61870.0,61869.0,0.18197296]
[1719501971585,0.6512,61870.0,61869.0,0.18197296]
[1719501971782,0.102,61870.0,61862.0,0.18197296]
[1719501971981,0.1,61869.0,61859.0,0.18197296]
[1719501972391,0.2922,61865.0,61859.0,0.18197296]
[1719501972643,0.2922,61863.0,61859.0,0.18197296]
[1719501972753,0.2446,61862.0,61859.0,0.18197296]
[1719501972968,0.2446,61860.0,61859.0,0.18197296]
[1719501973168,0.3446,61860.0,61859.0,0.18197296]
[1719501973585,0.6368,61860.0,61859.0,0.18197296]
[1719501973988,0.6368,61860.0,61859.0,0.18497296]
[1719501974217,0.63748655,61860.0,61859.0,0.24637192]
[1719501974423,0.79922956,61860.0,61859.0,0.24337192]
[1719501974676,0.63648655,61860.0,61859.0,0.43237192]
[1719501974805,0.63648655,61860.0,61859.0,0.23237192]
[1719501975143,0.1,61860.0,61859.0,0.44803511]
[1719501975348,0.1,61861.0,61860.0,0.32201659]
[1719501975548,0.46784301,61866.0,61864.0,0.21566319]
[1719501975549,0.1,61865.0,61864.0,0.21566319]
[1719501976337,0.1,61865.0,61864.0,0.2]
[1719501977156,0.3459,61865.0,61864.0,0.201]
[1719501977941,0.3459,61865.0,61864.0,0.001]
[1719501978573,0.3459,61865.0,61864.0,0.201]
[1719501978799,0.3459,61865.0,61864.0,0.001]
[1719501979037,0.3459,61865.0,61856.0,0.18197296]
[1719501979038,0.6582,61865.0,61856.0,0.18197296]
[1719501979197,0.5748,61862.0,61859.0,0.18197296]
[1719501979409,0.5707,61860.0,61859.0,0.18197296]
[1719501979609,0.6707,61860.0,61859.0,0.18197296]
[1719501980044,0.4138,61860.0,61859.0,0.18197296]
[1719501980216,0.2539,61859.0,61858.0,0.18197296]
[1719501980406,0.3539,61859.0,61858.0,0.18197296]
[1719501981387,0.3539,61859.0,61850.0,0.18197296]
[1719501981623,0.5482434,61857.0,61853.0,0.18197296]
[1719501981822,0.09873733,61856.0,61853.0,0.18197296]
[1719501982022,0.09873733,61856.0,61849.0,0.18197296]
[1719501982023,0.2371,61855.0,61849.0,0.18197296]
[1719501982500,0.2399,61854.0,61849.0,0.18197296]
[1719501982734,0.16174288,61853.0,61845.0,0.18197296]
[1719501982919,0.16174288,61853.0,61836.0,0.48782074]
[1719501982920,0.16174288,61848.0,61839.0,0.18197296]
[1719501983132,0.0936466,61852.0,61839.0,0.18197296]
[1719501983133,0.16174288,61845.0,61839.0,0.18197296]
[1719501983306,0.16174288,61845.0,61837.0,0.2]
[1719501983523,0.16174288,61845.0,61839.0,0.18197296]
[1719501983689,0.16174288,61845.0,61835.0,0.38197296]
[1719501983887,0.16150872,61845.0,61839.0,0.18197296]
[1719501984093,0.09968701,61844.0,61839.0,0.18197296]
[1719501984696,0.3064,61843.0,61840.0,0.2]
[1719501985697,0.09968701,61844.0,61842.0,0.21566319]
[1719501985902,0.2399,61846.0,61845.0,0.21566319]
[1719501986134,0.2399,61846.0,61843.0,0.2]
[1719501986348,0.1,61845.0,61844.0,0.2]
[1719501986554,0.12536151,61845.0,61844.0,0.21566319]
[1719501986957,0.1,61845.0,61844.0,0.21566319]
[1719501987618,0.1,61845.0,61841.0,0.1063534]
[1719501987619,0.009,61843.0,61841.0,0.32201659]
[1719501987985,0.009,61843.0,61842.0,0.21566319]
[1719501988184,0.1,61845.0,61843.0,0.2]
[1719501988333,0.1,61845.0,61842.0,0.2]
[1719501988534,0.112,61845.0,61844.0,0.001]
[1719501989706,0.116,61845.0,61844.0,0.002]
[1719501989864,0.112,61845.0,61844.0,0.001]
[1719501990071,0.104,61845.0,61844.0,0.001]
[1719501990711,0.6538,61845.0,61844.0,0.001]
[1719501990912,0.6608,61845.0,61844.0,0.001]
[1719501991330,0.6538,61845.0,61844.0,0.001]
[1719501991725,0.6608,61845.0,61844.0,0.002]
[1719501991886,0.65698327,61845.0,61844.0,0.002]
[1719501994315,0.65635701,61845.0,61844.0,0.002]
[1719501996534,0.65635701,61845.0,61835.0,0.18062306]
[1719501996769,0.5484,61843.0,61832.0,0.18062306]
[1719501996938,0.5484,61843.0,61831.0,0.2]
[1719501996939,0.3365,61842.0,61835.0,0.18062306]
[1719501997314,0.3365,61842.0,61835.0,0.17808691]
[1719501998158,0.3365,61842.0,61835.0,0.22809726]
[1719501998356,0.3365,61842.0,61835.0,0.17908691]
[1719501998709,0.02537529,61841.0,61835.0,0.17908691]
[1719501999467,0.02537529,61841.0,61835.0,0.001]
[1719501999672,0.02537529,61841.0,61831.0,0.17808691]
[1719501999835,0.02537529,61841.0,61835.0,0.001]
[1719502000032,0.02537529,61841.0,61835.0,0.002]
[1719502000237,0.02537529,61841.0,61835.0,0.001]
[1719502000473,0.02537529,61841.0,61831.0,0.17808691]
[1719502000674,0.03037529,61841.0,61831.0,0.17808691]
[1719502000880,0.03237529,61841.0,61831.0,0.17808691]
[1719502001237,0.03037529,61841.0,61831.0,0.17808691]
[1719502001536,0.02537529,61841.0,61831.0,0.17808691]
[1719502001745,0.5651,61839.0,61829.0,0.17808691]
[1719502001932,0.319,61836.0,61829.0,0.17808691]
[1719502002146,0.1,61835.0,61829.0,0.17808691]
[1719502003773,0.064843,61834.0,61829.0,0.17908691]
[1719502004260,0.0645307,61834.0,61829.0,0.17808691]
[1719502004610,0.0645307,61834.0,61829.0,0.18408691]
[1719502005025,0.0645307,61834.0,61829.0,0.006]
[1719502005212,0.0645307,61834.0,61827.0,0.17808691]
[1719502005418,0.0645307,61834.0,61829.0,0.002]
[1719502005931,0.0645307,61834.0,61827.0,0.17808691]
[1719502006691,0.2403,61833.0,61827.0,0.17808691]
[1719502006893,0.1,61832.0,61827.0,0.17808691]
[1719502007303,0.1,61832.0,61829.0,0.17680438]
[1719502007739,0.1,61832.0,61829.0,0.22668648]
[1719502008144,0.1,61832.0,61829.0,0.22568648]
[1719502008145,0.101,61832.0,61829.0,0.22568648]
[1719502008345,0.101,61832.0,61829.0,0.0498821]
[1719502008617,0.12537767,61832.0,61829.0,0.17580438]
[1719502008959,0.13037767,61832.0,61829.0,0.17580438]
[1719502009499,0.13037767,61832.0,61826.0,0.3063534]
[1719502009702,0.13037767,61832.0,61827.0,0.17580438]
[1719502010062,0.13037767,61832.0,61826.0,0.3063534]
[1719502010063,0.13037767,61832.0,61829.0,0.17580438]
[1719502010457,0.12937767,61832.0,61829.0,0.17580438]
[1719502011084,0.13037767,61832.0,61829.0,0.17580438]
[1719502011280,0.12637767,61832.0,61829.0,0.17580438]
[1719502011861,0.12937767,61832.0,61829.0,0.17580438]
[1719502012047,0.13037767,61832.0,61829.0,0.17580438]
[1719502012279,0.12637767,61832.0,61829.0,0.17580438]
[1719502012622,0.13037767,61832.0,61829.0,0.17580438]
[1719502013724,0.13037767,61832.0,61827.0,0.17580438]
[1719502014190,0.13029565,61832.0,61827.0,0.22558648]
[1719502014483,0.13029565,61832.0,61828.0,0.17580438]
[1719502014688,0.12929565,61832.0,61828.0,0.17580438]
[1719502015072,0.13029565,61832.0,61826.0,0.1063534]
[1719502015882,0.12629565,61832.0,61826.0,0.28215778]
[1719502016089,0.12629565,61832.0,61826.0,0.48215778]
[1719502016251,0.12629565,61832.0,61826.0,0.28215778]
[1719502016455,0.13029565,61832.0,61826.0,0.28215778]
[1719502016914,0.12929565,61832.0,61827.0,0.0497821]
[1719502017108,0.12929565,61832.0,61829.0,0.17580438]
[1719502017312,0.13029565,61832.0,61829.0,0.17580438]
[1719502017722,0.10491798,61832.0,61829.0,0.17580438]
[1719502017892,0.09991798,61832.0,61829.0,0.17580438]
[1719502018317,0.10491798,61832.0,61829.0,0.23035926]
[1719502018510,0.12629679,61832.0,61829.0,0.23035926]
[1719502018709,0.12529679,61832.0,61829.0,0.17580438]
[1719502018908,0.12929679,61832.0,61829.0,0.17580438]
[1719502019684,0.12929679,61832.0,61826.0,0.1063534]
[1719502020043,0.12929679,61832.0,61826.0,0.48215778]
[1719502020289,0.13029679,61832.0,61829.0,0.17580438]
[1719502020821,0.12929679,61832.0,61829.0,0.17580438]
[1719502021019,0.12929679,61832.0,61828.0,0.17580438]
[1719502021220,0.12629679,61832.0,61828.0,0.17580438]
[1719502021426,0.13029679,61832.0,61829.0,0.17580438]
[1719502021846,0.12529679,61832.0,61829.0,0.17580438]
[1719502022392,0.13029679,61832.0,61829.0,0.17580438]
[1719502023067,0.12629679,61832.0,61829.0,0.17580438]
[1719502024169,0.12629679,61832.0,61831.0,0.21566319]
[1719502024516,0.12629679,61832.0,61830.0,0.21566319]
[1719502024712,0.12629679,61832.0,61829.0,0.17580438]
[1719502024713,0.13029679,61832.0,61831.0,0.21566319]
[1719502024888,0.13029679,61832.0,61829.0,0.17580438]
[1719502025091,0.12929679,61832.0,61829.0,0.17580438]
[1719502025644,0.12629679,61832.0,61829.0,0.17580438]
[1719502025793,0.13029679,61832.0,61829.0,0.17580438]
[1719502026176,0.12629679,61832.0,61829.0,0.17580438]
[1719502026574,0.13029679,61832.0,61829.0,0.17672838]
[1719502026779,0.13113679,61832.0,61829.0,0.17672838]
[1719502027179,0.13013679,61832.0,61829.0,0.17672838]
[1719502027386,0.29213689,61832.0,61829.0,0.17487953]
[1719502027585,0.26775808,61832.0,61829.0,0.39054272]
[1719502027824,0.10575798,61832.0,61829.0,0.17487953]
[1719502028487,0.1620001,61831.0,61829.0,0.17487953]
[1719502028667,0.10194832,61832.0,61829.0,0.17487953]
[1719502028882,0.10194832,61832.0,61829.0,0.22456914]
[1719502029061,0.10194832,61832.0,61829.0,0.2]
[1719502029236,0.09794832,61832.0,61827.0,0.17487953]
[1719502029437,0.09794832,61832.0,61828.0,0.17487953]
[1719502029844,0.003,61831.0,61829.0,0.17487953]
[1719502030449,0.003,61831.0,61829.0,0.17587953]
[1719502030770,0.003,61831.0,61830.0,0.04978961]
[1719502031189,0.09694832,61832.0,61830.0,0.04978961]
[1719502031589,0.10094832,61832.0,61829.0,0.001]
[1719502031794,0.10094832,61832.0,61828.0,0.37487953]
[1719502032101,0.09694832,61832.0,61830.0,0.21666319]
[1719502032302,0.09694832,61832.0,61830.0,0.001]
[1719502032303,0.003,61831.0,61830.0,0.001]
[1719502033154,0.09694832,61832.0,61830.0,0.001]
[1719502034676,0.03021863,61832.0,61830.0,0.001]
[1719502034877,0.02621863,61832.0,61830.0,0.001]
[1719502035228,0.03021863,61832.0,61830.0,0.001]
[1719502035529,0.03021863,61832.0,61829.0,0.17487953]
[1719502035723,0.03121863,61832.0,61829.0,0.17487953]
[1719502035925,0.03121863,61832.0,61826.0,0.3063534]
[1719502036219,0.02990788,61832.0,61827.0,0.17487953]
[1719502036426,0.03090788,61832.0,61827.0,0.17487953]
[1719502036652,0.03090788,61832.0,61826.0,0.3063534]
[1719502036776,0.2456,61829.0,61819.0,0.17487953]
[1719502036975,0.23664815,61824.0,61813.0,0.17487953]
[1719502037198,0.23664815,61824.0,61807.0,1.02524]
[1719502037199,0.5288,61818.0,61807.0,0.18411953]
[1719502037389,0.23664815,61816.0,61811.0,0.17487953]
[1719502037596,0.1,61815.0,61811.0,0.2148578]
[1719502037797,0.1,61817.0,61811.0,0.2148578]
[1719502038195,0.11664945,61817.0,61811.0,0.2148578]
[1719502038642,0.11664945,61817.0,61812.0,0.04240978]
[1719502038643,0.11664988,61817.0,61812.0,0.04240978]
[1719502039216,0.13064988,61817.0,61812.0,0.21566319]
[1719502039429,0.13064988,61817.0,61811.0,0.17587953]
[1719502039647,0.11664988,61817.0,61811.0,0.17487953]
[1719502040024,0.11664988,61817.0,61812.0,0.001]
[1719502040025,0.13064988,61817.0,61812.0,0.001]
[1719502040231,0.113,61817.0,61811.0,0.17587953]
[1719502041274,0.11268917,61817.0,61811.0,0.17587953]
[1719502041829,0.12568917,61817.0,61812.0,0.001]
[1719502042242,0.09968917,61817.0,61811.0,0.17487953]
[1719502042371,0.10868917,61817.0,61811.0,0.17587953]
[1719502042577,0.12168917,61817.0,61811.0,0.17687953]
[1719502042795,0.11268917,61817.0,61811.0,0.17587953]
[1719502043609,0.12168917,61817.0,61812.0,0.001]
[1719502044221,0.1210711,61817.0,61812.0,0.001]
[1719502045029,0.1080711,61817.0,61812.0,0.001]
[1719502045431,0.1210711,61817.0,61812.0,0.002]
[1719502045608,0.1120711,61817.0,61812.0,0.001]
[1719502046149,0.1210711,61817.0,61812.0,0.001]
[1719502046765,0.1120711,61817.0,61812.0,0.001]
[1719502046922,0.1210711,61817.0,61812.0,0.04207827]
[1719502047510,0.1210711,61817.0,61812.0,0.002]
[1719502050235,0.5371,61816.0,61812.0,0.002]
[1719502050447,0.1,61815.0,61812.0,0.002]
[1719502051410,0.1,61815.0,61812.0,0.001]
[1719502051624,0.1,61815.0,61812.0,0.002]
[1719502052192,0.1,61815.0,61812.0,0.001]
[1719502052396,0.11,61815.0,61812.0,0.001]
[1719502053924,0.11,61815.0,61812.0,0.02235485]
[1719502054120,0.11,61815.0,61812.0,0.001]
[1719502054372,0.10968816,61815.0,61812.0,0.001]
[1719502055312,0.11668816,61815.0,61812.0,0.002]
[1719502056311,0.11668816,61815.0,61807.0,0.19688531]
[1719502056858,0.11668816,61815.0,61805.0,0.19688531]
[1719502057060,0.11668816,61815.0,61804.0,0.82593293]
[1719502057236,0.11668816,61815.0,61805.0,0.19688531]
[1719502057514,0.27902714,61815.0,61804.0,0.17487953]
[1719502057711,0.27902714,61815.0,61800.0,0.40599554]
[1719502057712,0.5172,61813.0,61800.0,0.40599554]
[1719502057919,0.6172,61812.0,61800.0,0.58087507]
[1719502058139,0.6172,61812.0,61807.0,0.001]
[1719502058565,0.6172,61812.0,61800.0,0.58087507]
[1719502058761,0.6172,61812.0,61807.0,0.001]
[1719502058969,0.16233898,61811.0,61807.0,0.001]
[1719502059547,0.1,61810.0,61807.0,0.001]
[1719502059768,0.26233898,61810.0,61796.0,1.23060217]
[1719502059953,0.26233898,61810.0,61807.0,0.001]
[1719502061516,0.26233898,61810.0,61807.0,0.002]
[1719502061734,0.26233898,61810.0,61807.0,0.001]
[1719502061931,0.5269,61809.0,61796.0,0.74278143]
[1719502062273,0.5269,61809.0,61807.0,0.001]
[1719502062274,0.1,61808.0,61807.0,0.001]
[1719502062826,0.12538962,61808.0,61807.0,0.001]
[1719502063038,0.12538962,61808.0,61797.0,0.19688531]
[1719502063220,0.12538962,61808.0,61796.0,0.74278143]
[1719502063390,0.12538962,61808.0,61797.0,0.19688531]
[1719502064340,0.12476759,61808.0,61800.0,0.2125485]
[1719502064468,0.12476759,61808.0,61797.0,0.10394054]
[1719502064469,0.14141421,61808.0,61807.0,0.19688531]
[1719502064667,0.04203624,61808.0,61805.0,0.2317]
[1719502064936,0.04203624,61808.0,61807.0,0.2125485]
[1719502065341,0.04203624,61808.0,61805.0,0.42858531]
[1719502065518,0.06403624,61808.0,61807.0,0.001]
[1719502065726,0.06403624,61808.0,61805.0,0.2317]
[1719502065727,0.05103624,61808.0,61805.0,0.2317]
[1719502065929,0.03438962,61808.0,61805.0,0.42858531]
[1719502066128,0.04738962,61808.0,61805.0,0.42958531]
[1719502066329,0.03838962,61808.0,61805.0,0.42958531]
[1719502066698,0.04738962,61808.0,61805.0,0.2327]
[1719502067050,0.04738962,61808.0,61805.0,0.001]
[1719502068080,0.5378,61807.0,61805.0,0.001]
[1719502068291,0.1,61806.0,61805.0,0.001]
[1719502068830,0.1,61806.0,61798.0,0.42787953]
[1719502069527,0.1,61806.0,61805.0,0.001]
[1719502069653,0.1,61806.0,61798.0,0.42787953]
[1719502069874,0.064873,61805.0,61800.0,0.19688531]
[1719502070253,0.064873,61805.0,61800.0,0.2125485]
[1719502070454,0.064873,61805.0,61800.0,0.19688531]
[1719502071013,0.064873,61805.0,61800.0,0.2125485]
[1719502071428,0.064873,61805.0,61798.0,0.42787953]
[1719502072018,0.064873,61805.0,61798.0,0.253]
[1719502072226,0.064873,61805.0,61798.0,0.42787953]
[1719502072952,0.069873,61805.0,61798.0,0.42787953]
[1719502073190,0.078873,61805.0,61800.0,0.001]
[1719502073507,0.064873,61805.0,61798.0,0.42787953]
[1719502073719,0.073873,61805.0,61798.0,0.42887953]
[1719502073919,0.078873,61805.0,61798.0,0.42887953]
[1719502074118,0.069873,61805.0,61798.0,0.42787953]
[1719502074320,0.0692503,61805.0,61798.0,0.42787953]
[1719502074631,0.0782503,61805.0,61800.0,0.001]
[1719502075950,0.0692503,61805.0,61800.0,0.2125485]
[1719502076219,0.0782503,61805.0,61799.0,0.19688531]
[1719502076739,0.0782503,61805.0,61798.0,0.42887953]
[1719502076949,0.0642503,61805.0,61798.0,0.42787953]
[1719502077367,0.0782503,61805.0,61800.0,0.001]
[1719502077514,0.0692503,61805.0,61798.0,0.42787953]
[1719502077880,0.0642503,61805.0,61798.0,0.42787953]
[1719502078084,0.0732503,61805.0,61798.0,0.42887953]
[1719502078620,0.0732503,61805.0,61798.0,0.254]
[1719502078825,0.0732503,61805.0,61798.0,0.42887953]
[1719502079421,0.0782503,61805.0,61798.0,0.42887953]
[1719502079844,0.0692503,61805.0,61798.0,0.42787953]
[1719502080142,0.0692503,61805.0,61800.0,0.001]
[1719502080271,0.0782503,61805.0,61800.0,0.001]
[1719502080840,0.0692503,61805.0,61798.0,0.42787953]
[1719502081039,0.0782503,61805.0,61798.0,0.42887953]
[1719502081267,0.0642503,61805.0,61798.0,0.42787953]
[1719502081768,0.0782503,61805.0,61800.0,0.001]
[1719502082424,0.0732503,61805.0,61800.0,0.001]
[1719502082793,0.0782503,61805.0,61800.0,0.001]
[1719502083218,0.0692503,61805.0,61798.0,0.17487953]
[1719502083422,0.0782503,61805.0,61798.0,0.001]
[1719502083777,0.0692503,61805.0,61796.0,0.3471534]
[1719502084204,0.0782503,61805.0,61800.0,0.001]
[1719502084539,0.48398413,61802.0,61793.0,0.28123293]
[1719502084738,0.1,61801.0,61798.0,0.001]
[1719502085171,0.23648413,61800.0,61798.0,0.001]
[1719502085377,0.1,61799.0,61798.0,0.001]
[1719502086162,0.4054,61799.0,61798.0,0.001]
[1719502086374,0.4054,61799.0,61792.0,0.08188698]
[1719502087560,0.4184,61799.0,61792.0,0.08188698]
[1719502087734,0.4054,61799.0,61792.0,0.08188698]
[1719502088136,0.4184,61799.0,61792.0,0.08188698]
[1719502088791,0.2374,61798.0,61792.0,0.08188698]
[1719502088957,0.1,61797.0,61792.0,0.08188698]
[1719502091082,0.11,61797.0,61792.0,0.08188698]
[1719502091385,0.116,61797.0,61792.0,0.08188698]
[1719502092434,0.116,61797.0,61793.0,0.19688531]
[1719502092833,0.016,61797.0,61792.0,0.08188698]
[1719502093871,0.1,61798.0,61792.0,0.08188698]
[1719502094082,0.01,61797.0,61792.0,0.08188698]
[1719502094195,0.016,61797.0,61792.0,0.08188698]
[1719502094398,0.01537962,61797.0,61792.0,0.08188698]
[1719502094599,0.00937962,61797.0,61792.0,0.08188698]
[1719502094802,0.1,61798.0,61792.0,0.08188698]
[1719502095318,0.01,61797.0,61792.0,0.08188698]
[1719502096692,0.006,61797.0,61792.0,0.08188698]
[1719502097126,0.006,61797.0,61795.0,0.2125485]
[1719502097343,0.006,61797.0,61792.0,0.08188698]
[1719502097344,0.006,61797.0,61794.0,0.43798531]
[1719502097790,0.016,61797.0,61795.0,0.19688531]
[1719502098233,0.01,61797.0,61794.0,0.2411]
[1719502098439,0.016,61797.0,61794.0,0.2411]
[1719502099101,0.006,61797.0,61794.0,0.2411]
[1719502099525,0.006,61797.0,61794.0,0.43798531]
[1719502099739,0.006,61797.0,61795.0,0.19688531]
[1719502100568,0.016,61797.0,61794.0,0.2411]
[1719502100748,0.1,61800.0,61792.0,0.08188698]
[1719502100943,0.006,61797.0,61792.0,0.08188698]
[1719502101126,0.016,61797.0,61792.0,0.08188698]
[1719502101725,0.01,61797.0,61792.0,0.08188698]
[1719502102052,0.1,61798.0,61792.0,0.08188698]
[1719502102247,0.01,61797.0,61792.0,0.08188698]
[1719502104481,0.01537738,61797.0,61792.0,0.08188698]
[1719502105004,0.01537738,61797.0,61792.0,0.000924]
[1719502105219,0.2311,61795.0,61792.0,0.000924]
[1719502105355,0.1,61794.0,61792.0,0.000924]
[1719502106880,0.3039,61793.0,61792.0,0.000924]
[1719502107105,0.4039,61793.0,61792.0,0.000924]
[1719502108899,0.4159,61793.0,61792.0,0.000924]
[1719502109110,0.1131929,61793.0,61792.0,0.000924]
[1719502109468,0.021,61793.0,61792.0,0.000924]
[1719502110252,0.021,61793.0,61780.0,0.234]
[1719502110253,0.02,61787.0,61780.0,0.234]
[1719502110682,0.2839,61786.0,61780.0,0.234]
[1719502111286,0.1,61785.0,61780.0,0.234]